[Event "Titled Tuesday Blitz June 21 Early 2022"]
[White "Srbis, Jurica"]
[Black "Arabidze, Meri"]
[WhiteFideId "14515555"]
[BlackFideId "13604040"]
[WhiteElo "2519"]
[BlackElo "2335"]
[Result "1/2-1/2"]
[Round "04"]
[TimeControl "180+1"]
[Date "2022.06.21"]
[WhiteClock "0:00:19"]
[BlackClock "0:00:15"]

1. e4 {[%clk 0:03:00]}  c5 {[%clk 0:02:55]} 2. Nf3 {[%clk 0:03:01]}  e6 {[%clk 0:02:56]} 3. d4 {[%clk 0:03:01]}  cxd4 {[%clk 0:02:57]} 4. Nxd4 {[%clk 0:03:01]}  Nc6 {[%clk 0:02:57]} 5. Nc3 {[%clk 0:03:02]}  a6 {[%clk 0:02:57]} 6. Nxc6 {[%clk 0:02:50]}  bxc6 {[%clk 0:02:58]} 7. Bd3 {[%clk 0:02:51]}  d5 {[%clk 0:02:58]} 8. O-O {[%clk 0:02:51]}  Nf6 {[%clk 0:02:58]} 9. Re1 {[%clk 0:02:48]}  Bb7 {[%clk 0:02:59]} 10. Qf3 {[%clk 0:02:32]}  Be7 {[%clk 0:02:57]} 11. Qh3 {[%clk 0:02:29]}  Qc7 {[%clk 0:02:51]} 12. Bg5 {[%clk 0:02:27]}  dxe4 {[%clk 0:02:19]} 13. Bxe4 {[%clk 0:02:20]}  Nxe4 {[%clk 0:02:10]} 14. Nxe4 {[%clk 0:02:19]}  c5 {[%clk 0:02:01]} 15. Qh4 {[%clk 0:01:47]}  Bxe4 {[%clk 0:01:52]} 16. Qxe4 {[%clk 0:01:29]}  O-O {[%clk 0:01:49]} 17. Bxe7 {[%clk 0:01:29]}  Qxe7 {[%clk 0:01:46]} 18. Rad1 {[%clk 0:01:30]}  Rab8 {[%clk 0:01:39]} 19. b3 {[%clk 0:01:29]}  Qc7 {[%clk 0:01:31]} 20. Rd3 {[%clk 0:01:23]}  Rfd8 {[%clk 0:01:24]} 21. Red1 {[%clk 0:01:23]}  h6 {[%clk 0:01:17]} 22. g3 {[%clk 0:01:22]}  Rxd3 {[%clk 0:01:14]} 23. Qxd3 {[%clk 0:01:21]}  c4 {[%clk 0:01:05]} 24. bxc4 {[%clk 0:00:31]}  Rc8 {[%clk 0:01:00]} 25. Qe4 {[%clk 0:00:14]}  g6 {[%clk 0:00:52]} 26. Rd4 {[%clk 0:00:15]}  h5 {[%clk 0:00:48]} 27. Qd3 {[%clk 0:00:15]}  Qa5 {[%clk 0:00:39]} 28. a3 {[%clk 0:00:14]}  Qc7 {[%clk 0:00:28]} 29. h4 {[%clk 0:00:13]}  e5 {[%clk 0:00:20]} 30. Rd5 {[%clk 0:00:09]}  Qxc4 {[%clk 0:00:19]} 31. Rxe5 {[%clk 0:00:10]}  Qxd3 {[%clk 0:00:17]} 32. cxd3 {[%clk 0:00:11]}  Rc3 {[%clk 0:00:15]} 33. Ra5 {[%clk 0:00:11]}  Rxd3 {[%clk 0:00:15]} 34. Rxa6 {[%clk 0:00:12]}  Rd2 {[%clk 0:00:15]} 35. Ra8+ {[%clk 0:00:12]}  Kg7 {[%clk 0:00:15]} 36. a4 {[%clk 0:00:13]}  Ra2 {[%clk 0:00:15]} 37. a5 {[%clk 0:00:14]}  Kf6 {[%clk 0:00:15]} 38. a6 {[%clk 0:00:15]}  Kf5 {[%clk 0:00:15]} 39. Kg2 {[%clk 0:00:16]}  f6 {[%clk 0:00:15]} 40. Kf3 {[%clk 0:00:16]}  Ra3+ {[%clk 0:00:15]} 41. Kg2 {[%clk 0:00:17]}  Ra2 {[%clk 0:00:16]} 42. Kf3 {[%clk 0:00:14]}  Ra3+ {[%clk 0:00:16]} 43. Ke2 {[%clk 0:00:15]}  Ra2+ {[%clk 0:00:17]} 44. Ke3 {[%clk 0:00:15]}  Ra3+ {[%clk 0:00:18]} 45. Kd4 {[%clk 0:00:16]}  Kg4 {[%clk 0:00:18]} 46. Kc5 {[%clk 0:00:16]}  Kf3 {[%clk 0:00:17]} 47. Kb6 {[%clk 0:00:17]}  Kxf2 {[%clk 0:00:17]} 48. Rg8 {[%clk 0:00:17]}  Kxg3 {[%clk 0:00:16]} 49. Rxg6+ {[%clk 0:00:18]}  Kxh4 {[%clk 0:00:16]} 50. Rxf6 {[%clk 0:00:19]}  Kh3 {[%clk 0:00:15]} 51. Rf5 {[%clk 0:00:19]}  Rxa6+ {[%clk 0:00:15]} 52. Kxa6 {[%clk 0:00:19]}  h4 {[%clk 0:00:15]} 53. Kb5 {[%clk 0:00:19]}  Kg3 {[%clk 0:00:14]} 54. Rf8 {[%clk 0:00:18]}  h3 {[%clk 0:00:15]} 55. Rg8+ {[%clk 0:00:18]}  Kf2 {[%clk 0:00:14]} 56. Rf8+ {[%clk 0:00:18]}  Kg2 {[%clk 0:00:15]} 57. Rg8+ {[%clk 0:00:19]}  Kf2 {[%clk 0:00:15]} 58. Rf8+ {[%clk 0:00:18]}  Kg2 {[%clk 0:00:15]} 59. Kc4 {[%clk 0:00:17]}  h2 {[%clk 0:00:15]} 60. Rg8+ {[%clk 0:00:18]}  Kf2 {[%clk 0:00:15]} 61. Rh8 {[%clk 0:00:18]}  Kg2 {[%clk 0:00:15]} 62. Rxh2+ {[%clk 0:00:19]}  Kxh2 {[%clk 0:00:15]} 1/2-1/2


[Site "https://www.chess.com"]

[Event "Titled Tuesday Blitz June 21 Early 2022"]
[White "Starozhilov, Leonid"]
[Black "Leve, Nitai"]
[WhiteFideId "14106752"]
[BlackFideId "2006898"]
[WhiteElo "2414"]
[BlackElo "2144"]
[Result "1-0"]
[Round "04"]
[TimeControl "180+1"]
[Date "2022.06.21"]
[WhiteClock "0:00:30"]
[BlackClock "0:00:02"]

1. e4 {[%clk 0:02:58]}  c6 {[%clk 0:02:58]} 2. d3 {[%clk 0:02:57]}  d5 {[%clk 0:02:58]} 3. Nd2 {[%clk 0:02:58]}  Nf6 {[%clk 0:02:58]} 4. Ngf3 {[%clk 0:02:58]}  Bg4 {[%clk 0:02:54]} 5. Be2 {[%clk 0:02:55]}  e6 {[%clk 0:02:51]} 6. c3 {[%clk 0:02:55]}  Nbd7 {[%clk 0:02:50]} 7. O-O {[%clk 0:02:53]}  dxe4 {[%clk 0:02:46]} 8. dxe4 {[%clk 0:02:53]}  Nc5 {[%clk 0:02:46]} 9. Qc2 {[%clk 0:02:52]}  a5 {[%clk 0:02:28]} 10. Re1 {[%clk 0:02:49]}  a4 {[%clk 0:02:23]} 11. Bf1 {[%clk 0:02:47]}  Qc7 {[%clk 0:02:19]} 12. h3 {[%clk 0:02:46]}  Bh5 {[%clk 0:02:16]} 13. Nd4 {[%clk 0:02:37]}  Bd6 {[%clk 0:02:03]} 14. Nc4 {[%clk 0:02:31]}  Bh2+ {[%clk 0:01:49]} 15. Kh1 {[%clk 0:02:31]}  Bf4 {[%clk 0:01:50]} 16. e5 {[%clk 0:02:31]}  Nd5 {[%clk 0:01:45]} 17. Bxf4 {[%clk 0:02:25]}  Nxf4 {[%clk 0:01:46]} 18. Qd2 {[%clk 0:02:15]}  Nd5 {[%clk 0:01:29]} 19. Nd6+ {[%clk 0:02:12]}  Kf8 {[%clk 0:01:26]} 20. c4 {[%clk 0:02:10]}  Nb6 {[%clk 0:01:17]} 21. b4 {[%clk 0:01:52]}  axb3 {[%clk 0:00:52]} 22. axb3 {[%clk 0:01:52]}  Rd8 {[%clk 0:00:42]} 23. b4 {[%clk 0:01:41]}  Na6 {[%clk 0:00:31]} 24. b5 {[%clk 0:01:28]}  Nc5 {[%clk 0:00:22]} 25. Ra7 {[%clk 0:01:04]}  h6 {[%clk 0:00:07]} 26. bxc6 {[%clk 0:00:59]}  Nc8 {[%clk 0:00:06]} 27. Nxc8 {[%clk 0:00:35]}  Qxc8 {[%clk 0:00:07]} 28. Qb4 {[%clk 0:00:33]}  b6 {[%clk 0:00:03]} 29. Qxb6 {[%clk 0:00:32]}  Nd3 {[%clk 0:00:01]} 30. Bxd3 {[%clk 0:00:30]}  Kg8 {[%clk 0:00:02]} 1-0


[Site "https://www.chess.com"]

[Event "Titled Tuesday Blitz June 21 Early 2022"]
[White "Steinberg, Nitzan"]
[Black "Zierk, Steven"]
[WhiteFideId "2801795"]
[BlackFideId "2034255"]
[WhiteElo "2471"]
[BlackElo "2494"]
[Result "1-0"]
[Round "04"]
[TimeControl "180+1"]
[Date "2022.06.21"]
[WhiteClock "0:01:30"]
[BlackClock "0:01:06"]

1. e4 {[%clk 0:03:00]}  e6 {[%clk 0:02:58]} 2. d4 {[%clk 0:03:00]}  d5 {[%clk 0:02:58]} 3. exd5 {[%clk 0:03:01]}  exd5 {[%clk 0:02:59]} 4. Nf3 {[%clk 0:03:01]}  Nc6 {[%clk 0:02:59]} 5. Bb5 {[%clk 0:03:00]}  Bd6 {[%clk 0:02:59]} 6. c4 {[%clk 0:03:00]}  dxc4 {[%clk 0:03:00]} 7. O-O {[%clk 0:02:59]}  a6 {[%clk 0:02:57]} 8. Bxc4 {[%clk 0:02:59]}  Nf6 {[%clk 0:02:53]} 9. Re1+ {[%clk 0:02:57]}  Be7 {[%clk 0:02:53]} 10. h3 {[%clk 0:02:57]}  O-O {[%clk 0:02:52]} 11. Nc3 {[%clk 0:02:55]}  Bf5 {[%clk 0:02:40]} 12. a3 {[%clk 0:02:52]}  b5 {[%clk 0:02:36]} 13. Bb3 {[%clk 0:02:46]}  Na5 {[%clk 0:02:32]} 14. Ba2 {[%clk 0:02:44]}  Nc4 {[%clk 0:02:27]} 15. Bxc4 {[%clk 0:02:42]}  bxc4 {[%clk 0:02:28]} 16. Ne5 {[%clk 0:02:42]}  Be6 {[%clk 0:02:06]} 17. Nc6 {[%clk 0:02:34]}  Qd6 {[%clk 0:02:06]} 18. d5 {[%clk 0:01:51]}  Nxd5 {[%clk 0:01:29]} 19. Nxd5 {[%clk 0:01:51]}  Bh4 {[%clk 0:01:29]} 20. Ndb4 {[%clk 0:01:42]}  Qc5 {[%clk 0:01:22]} 21. Be3 {[%clk 0:01:40]}  Qd6 {[%clk 0:01:06]} 22. Qh5 {[%clk 0:01:30]} 1-0


[Site "https://www.chess.com"]

[Event "Titled Tuesday Blitz June 21 Early 2022"]
[White "Tanaka, Taira Tyler"]
[Black "Deviprasath, Sharvesh"]
[WhiteFideId "7002351"]
[BlackFideId "30938228"]
[WhiteElo "2559"]
[BlackElo "2102"]
[Result "1/2-1/2"]
[Round "04"]
[TimeControl "180+1"]
[Date "2022.06.21"]
[WhiteClock "0:01:18"]
[BlackClock "0:01:37"]

1. Nf3 {[%clk 0:03:00]}  Nf6 {[%clk 0:02:56]} 2. g3 {[%clk 0:03:01]}  g6 {[%clk 0:02:57]} 3. b3 {[%clk 0:02:58]}  Bg7 {[%clk 0:02:58]} 4. Bb2 {[%clk 0:02:58]}  O-O {[%clk 0:02:59]} 5. Bg2 {[%clk 0:02:58]}  d6 {[%clk 0:02:54]} 6. d4 {[%clk 0:02:58]}  a5 {[%clk 0:02:54]} 7. a4 {[%clk 0:02:56]}  c6 {[%clk 0:02:52]} 8. O-O {[%clk 0:02:56]}  Nbd7 {[%clk 0:02:52]} 9. Re1 {[%clk 0:02:50]}  e5 {[%clk 0:02:40]} 10. dxe5 {[%clk 0:02:50]}  Ng4 {[%clk 0:02:29]} 11. Qxd6 {[%clk 0:02:42]}  Ngxe5 {[%clk 0:02:23]} 12. Nxe5 {[%clk 0:02:40]}  Nxe5 {[%clk 0:02:22]} 13. Qxd8 {[%clk 0:02:31]}  Rxd8 {[%clk 0:02:23]} 14. Nc3 {[%clk 0:02:17]}  Bf5 {[%clk 0:02:17]} 15. e4 {[%clk 0:02:16]}  Bg4 {[%clk 0:02:14]} 16. h3 {[%clk 0:01:43]}  Bf3 {[%clk 0:02:13]} 17. Re3 {[%clk 0:01:41]}  Bxg2 {[%clk 0:02:08]} 18. Kxg2 {[%clk 0:01:42]}  Rd2 {[%clk 0:02:08]} 19. Re2 {[%clk 0:01:38]}  Rad8 {[%clk 0:02:06]} 20. Rae1 {[%clk 0:01:38]}  Nd3 {[%clk 0:01:41]} 21. cxd3 {[%clk 0:01:24]}  Rxb2 {[%clk 0:01:39]} 22. Rxb2 {[%clk 0:01:25]}  Bxc3 {[%clk 0:01:39]} 23. Ree2 {[%clk 0:01:22]}  Bxb2 {[%clk 0:01:39]} 24. Rxb2 {[%clk 0:01:22]}  Rxd3 {[%clk 0:01:40]} 25. b4 {[%clk 0:01:20]}  Rd4 {[%clk 0:01:40]} 26. bxa5 {[%clk 0:01:18]}  Rxe4 {[%clk 0:01:39]} 27. Rxb7 {[%clk 0:01:18]}  Rxa4 {[%clk 0:01:38]} 28. Rb6 {[%clk 0:01:18]}  Rxa5 {[%clk 0:01:37]} 29. Rxc6 {[%clk 0:01:18]} 1/2-1/2


[Site "https://www.chess.com"]

[Event "Titled Tuesday Blitz June 21 Early 2022"]
[White "Tisaj, Domen"]
[Black "Koellner, Ruben Gideon"]
[WhiteFideId "14628708"]
[BlackFideId "12993093"]
[WhiteElo "2742"]
[BlackElo "2563"]
[Result "1-0"]
[Round "04"]
[TimeControl "180+1"]
[Date "2022.06.21"]
[WhiteClock "0:01:18"]
[BlackClock "0:00:09"]

1. d4 {[%clk 0:03:00]}  d6 {[%clk 0:02:58]} 2. e4 {[%clk 0:03:00]}  Nf6 {[%clk 0:02:58]} 3. Nc3 {[%clk 0:02:59]}  e5 {[%clk 0:02:58]} 4. Nf3 {[%clk 0:02:59]}  Nbd7 {[%clk 0:02:58]} 5. Bc4 {[%clk 0:02:59]}  Be7 {[%clk 0:02:58]} 6. O-O {[%clk 0:02:59]}  c6 {[%clk 0:02:59]} 7. a4 {[%clk 0:02:59]}  h6 {[%clk 0:02:59]} 8. Re1 {[%clk 0:03:00]}  Qc7 {[%clk 0:03:00]} 9. h3 {[%clk 0:03:00]}  Nf8 {[%clk 0:03:00]} 10. b3 {[%clk 0:03:00]}  g5 {[%clk 0:03:00]} 11. d5 {[%clk 0:02:58]}  Ng6 {[%clk 0:03:00]} 12. dxc6 {[%clk 0:02:45]}  bxc6 {[%clk 0:03:00]} 13. b4 {[%clk 0:02:46]}  a6 {[%clk 0:02:54]} 14. Qd3 {[%clk 0:02:43]}  Nh5 {[%clk 0:02:42]} 15. Ne2 {[%clk 0:02:39]}  Rg8 {[%clk 0:02:35]} 16. Nh2 {[%clk 0:02:39]}  Ngf4 {[%clk 0:02:31]} 17. Nxf4 {[%clk 0:02:34]}  Nxf4 {[%clk 0:02:30]} 18. Bxf4 {[%clk 0:02:33]}  gxf4 {[%clk 0:02:30]} 19. b5 {[%clk 0:02:26]}  Bd7 {[%clk 0:01:53]} 20. Qb3 {[%clk 0:02:12]}  Kf8 {[%clk 0:01:27]} 21. b6 {[%clk 0:02:11]}  Qb7 {[%clk 0:01:26]} 22. Bxf7 {[%clk 0:02:07]}  Rg7 {[%clk 0:01:25]} 23. Be6 {[%clk 0:02:07]}  Bxe6 {[%clk 0:01:19]} 24. Qxe6 {[%clk 0:02:07]}  Qxb6 {[%clk 0:01:19]} 25. Rab1 {[%clk 0:01:28]}  Qc5 {[%clk 0:01:00]} 26. Qxh6 {[%clk 0:01:25]}  Qxc2 {[%clk 0:00:46]} 27. Rb7 {[%clk 0:01:24]}  Qc3 {[%clk 0:00:27]} 28. Reb1 {[%clk 0:01:21]}  f3 {[%clk 0:00:20]} 29. Rxe7 {[%clk 0:01:18]}  Kxe7 {[%clk 0:00:09]} 30. Qxg7+ {[%clk 0:01:18]}  Ke6 {[%clk 0:00:09]} 1-0


[Site "https://www.chess.com"]

[Event "Titled Tuesday Blitz June 21 Early 2022"]
[White "Ursan, Petru-Sebastian"]
[Black "parintele_chess"]
[WhiteFideId "1227556"]
[WhiteElo "2066"]
[BlackElo "2257"]
[Result "1-0"]
[Round "04"]
[TimeControl "180+1"]
[Date "2022.06.21"]
[WhiteClock "0:00:30"]
[BlackClock "0:00:19"]

1. e4 {[%clk 0:02:59]}  e5 {[%clk 0:02:58]} 2. Nf3 {[%clk 0:02:55]}  Nc6 {[%clk 0:02:58]} 3. d4 {[%clk 0:02:54]}  exd4 {[%clk 0:02:58]} 4. Bc4 {[%clk 0:02:54]}  Nf6 {[%clk 0:02:58]} 5. e5 {[%clk 0:02:55]}  Ne4 {[%clk 0:02:58]} 6. Qe2 {[%clk 0:02:44]}  Nc5 {[%clk 0:02:39]} 7. O-O {[%clk 0:02:41]}  Be7 {[%clk 0:02:36]} 8. Bf4 {[%clk 0:02:42]}  O-O {[%clk 0:02:34]} 9. Nbd2 {[%clk 0:02:41]}  Ne6 {[%clk 0:02:32]} 10. Bg3 {[%clk 0:02:39]}  d5 {[%clk 0:02:29]} 11. Bd3 {[%clk 0:02:31]}  Bg5 {[%clk 0:02:09]} 12. Nxg5 {[%clk 0:02:25]}  Qxg5 {[%clk 0:02:09]} 13. f4 {[%clk 0:02:23]}  Qe7 {[%clk 0:02:05]} 14. f5 {[%clk 0:02:09]}  Nc5 {[%clk 0:02:03]} 15. f6 {[%clk 0:02:00]}  gxf6 {[%clk 0:02:00]} 16. Bxh7+ {[%clk 0:01:53]}  Kxh7 {[%clk 0:01:48]} 17. Qh5+ {[%clk 0:01:49]}  Kg8 {[%clk 0:01:47]} 18. Rxf6 {[%clk 0:01:36]}  Bf5 {[%clk 0:00:41]} 19. Qxf5 {[%clk 0:01:29]}  Ne6 {[%clk 0:00:40]} 20. Bh4 {[%clk 0:01:17]}  Ng7 {[%clk 0:00:37]} 21. Qf2 {[%clk 0:01:04]}  Qxe5 {[%clk 0:00:27]} 22. Re1 {[%clk 0:00:51]}  Qh5 {[%clk 0:00:27]} 23. Rf3 {[%clk 0:00:41]}  Rae8 {[%clk 0:00:26]} 24. Rg3 {[%clk 0:00:40]}  Rxe1+ {[%clk 0:00:25]} 25. Qxe1 {[%clk 0:00:41]}  Re8 {[%clk 0:00:26]} 26. Qxe8+ {[%clk 0:00:40]}  Kh7 {[%clk 0:00:24]} 27. Bf6 {[%clk 0:00:32]}  Qd1+ {[%clk 0:00:24]} 28. Nf1 {[%clk 0:00:31]}  Nf5 {[%clk 0:00:19]} 29. Qh8# {[%clk 0:00:30]} 1-0


[Site "https://www.chess.com"]

[Event "Titled Tuesday Blitz June 21 Early 2022"]
[White "Veiga, Jose Francisco R P Neves"]
[Black "Priyanka Nutakki"]
[WhiteFideId "1930087"]
[BlackFideId "25049615"]
[WhiteElo "2326"]
[BlackElo "1912"]
[Result "1-0"]
[Round "04"]
[TimeControl "180+1"]
[Date "2022.06.21"]
[WhiteClock "0:00:15"]
[BlackClock "0:00:06"]

1. e4 {[%clk 0:03:00]}  e6 {[%clk 0:02:57]} 2. d4 {[%clk 0:02:58]}  d5 {[%clk 0:02:55]} 3. exd5 {[%clk 0:02:59]}  exd5 {[%clk 0:02:54]} 4. Nf3 {[%clk 0:02:59]}  Nf6 {[%clk 0:02:51]} 5. Bd3 {[%clk 0:02:59]}  Bd6 {[%clk 0:02:49]} 6. Qe2+ {[%clk 0:02:59]}  Qe7 {[%clk 0:02:46]} 7. Qxe7+ {[%clk 0:02:59]}  Bxe7 {[%clk 0:02:47]} 8. Bf4 {[%clk 0:02:56]}  c6 {[%clk 0:02:45]} 9. O-O {[%clk 0:02:54]}  O-O {[%clk 0:02:43]} 10. Re1 {[%clk 0:02:54]}  Re8 {[%clk 0:02:42]} 11. h3 {[%clk 0:02:54]}  Nbd7 {[%clk 0:02:41]} 12. Nbd2 {[%clk 0:02:51]}  Nf8 {[%clk 0:02:41]} 13. c3 {[%clk 0:02:50]}  Ne6 {[%clk 0:02:28]} 14. Bg3 {[%clk 0:02:45]}  g6 {[%clk 0:02:11]} 15. Ne5 {[%clk 0:02:42]}  Nh5 {[%clk 0:02:07]} 16. Bh2 {[%clk 0:02:41]}  Nhf4 {[%clk 0:02:01]} 17. Bf1 {[%clk 0:02:40]}  f6 {[%clk 0:01:52]} 18. Nd3 {[%clk 0:02:37]}  Nxd3 {[%clk 0:01:51]} 19. Bxd3 {[%clk 0:02:38]}  Kf7 {[%clk 0:01:50]} 20. Re2 {[%clk 0:02:27]}  Bd7 {[%clk 0:01:47]} 21. Rae1 {[%clk 0:02:27]}  Bf8 {[%clk 0:01:43]} 22. Nb3 {[%clk 0:01:53]}  a5 {[%clk 0:01:34]} 23. a4 {[%clk 0:01:52]}  b6 {[%clk 0:01:21]} 24. Nc1 {[%clk 0:01:51]}  Bh6 {[%clk 0:01:18]} 25. Bc2 {[%clk 0:01:48]}  c5 {[%clk 0:00:46]} 26. dxc5 {[%clk 0:01:47]}  Nxc5 {[%clk 0:00:46]} 27. Rxe8 {[%clk 0:01:42]}  Rxe8 {[%clk 0:00:47]} 28. Rxe8 {[%clk 0:01:36]}  Bxe8 {[%clk 0:00:48]} 29. Nd3 {[%clk 0:01:31]}  Bxa4 {[%clk 0:00:38]} 30. Bb1 {[%clk 0:00:51]}  Ne4 {[%clk 0:00:27]} 31. Bc7 {[%clk 0:00:46]}  Nd2 {[%clk 0:00:23]} 32. Ba2 {[%clk 0:00:46]}  Bb3 {[%clk 0:00:21]} 33. Bxb3 {[%clk 0:00:42]}  Nxb3 {[%clk 0:00:22]} 34. Bxb6 {[%clk 0:00:43]}  Ke6 {[%clk 0:00:20]} 35. Kf1 {[%clk 0:00:41]}  Kd6 {[%clk 0:00:20]} 36. Ke2 {[%clk 0:00:41]}  a4 {[%clk 0:00:20]} 37. Kd1 {[%clk 0:00:37]}  Kc6 {[%clk 0:00:19]} 38. Bd8 {[%clk 0:00:37]}  f5 {[%clk 0:00:19]} 39. Kc2 {[%clk 0:00:36]}  Nd2 {[%clk 0:00:18]} 40. f3 {[%clk 0:00:33]}  Nc4 {[%clk 0:00:18]} 41. Nb4+ {[%clk 0:00:33]}  Kd6 {[%clk 0:00:17]} 42. Bf6 {[%clk 0:00:30]}  Ne3+ {[%clk 0:00:17]} 43. Kd3 {[%clk 0:00:28]}  Nxg2 {[%clk 0:00:18]} 44. h4 {[%clk 0:00:23]}  Ke6 {[%clk 0:00:17]} 45. Bd8 {[%clk 0:00:23]}  Nf4+ {[%clk 0:00:15]} 46. Kd4 {[%clk 0:00:20]}  Bg7+ {[%clk 0:00:15]} 47. Kc5 {[%clk 0:00:20]}  a3 {[%clk 0:00:12]} 48. bxa3 {[%clk 0:00:19]}  Bxc3 {[%clk 0:00:13]} 49. Bg5 {[%clk 0:00:19]}  Ne2 {[%clk 0:00:07]} 50. Nxd5 {[%clk 0:00:17]}  Bb2 {[%clk 0:00:08]} 51. a4 {[%clk 0:00:17]}  Nd4 {[%clk 0:00:05]} 52. Nf4+ {[%clk 0:00:15]}  Kf7 {[%clk 0:00:04]} 53. Nd3 {[%clk 0:00:16]}  Ba1 {[%clk 0:00:03]} 54. a5 {[%clk 0:00:16]}  Nb3+ {[%clk 0:00:03]} 55. Kb4 {[%clk 0:00:16]}  Nxa5 {[%clk 0:00:03]} 56. Kxa5 {[%clk 0:00:17]}  Bc3+ {[%clk 0:00:03]} 57. Kb5 {[%clk 0:00:17]}  Ke6 {[%clk 0:00:03]} 58. Kc4 {[%clk 0:00:18]}  Ba1 {[%clk 0:00:03]} 59. Bf4 {[%clk 0:00:18]}  Kf6 {[%clk 0:00:03]} 60. Kd5 {[%clk 0:00:18]}  h6 {[%clk 0:00:03]} 61. Bxh6 {[%clk 0:00:17]}  Bc3 {[%clk 0:00:01]} 62. Bg5+ {[%clk 0:00:18]}  Kf7 {[%clk 0:00:01]} 63. Nf4 {[%clk 0:00:19]}  Bd2 {[%clk 0:00:01]} 64. Ne6 {[%clk 0:00:18]}  Bxg5 {[%clk 0:00:02]} 65. Nxg5+ {[%clk 0:00:18]}  Kg7 {[%clk 0:00:03]} 66. Ke6 {[%clk 0:00:18]}  Kh6 {[%clk 0:00:03]} 67. Kf6 {[%clk 0:00:18]}  Kh5 {[%clk 0:00:04]} 68. Ne6 {[%clk 0:00:16]}  Kxh4 {[%clk 0:00:03]} 69. Kxg6 {[%clk 0:00:16]}  Kg3 {[%clk 0:00:04]} 70. Nd4 {[%clk 0:00:17]}  Kf4 {[%clk 0:00:04]} 71. Kf6 {[%clk 0:00:16]}  Ke3 {[%clk 0:00:04]} 72. Ke5 {[%clk 0:00:16]}  f4 {[%clk 0:00:05]} 73. Kd5 {[%clk 0:00:15]}  Kd3 {[%clk 0:00:05]} 74. Ne6 {[%clk 0:00:13]}  Ke3 {[%clk 0:00:05]} 75. Ng5 {[%clk 0:00:14]}  Kd3 {[%clk 0:00:05]} 76. Ke5 {[%clk 0:00:14]}  Ke3 {[%clk 0:00:06]} 77. Kf5 {[%clk 0:00:15]} 1-0


[Site "https://www.chess.com"]

[Event "Titled Tuesday Blitz June 21 Early 2022"]
[White "Winkels, Marcel"]
[Black "Hoffmann, Asa"]
[WhiteFideId "1003887"]
[BlackFideId "2001470"]
[WhiteElo "1900"]
[BlackElo "2117"]
[Result "0-1"]
[Round "04"]
[TimeControl "180+1"]
[Date "2022.06.21"]
[WhiteClock "0:00:34"]
[BlackClock "0:00:59"]

1. e4 {[%clk 0:03:00]}  d6 {[%clk 0:02:59]} 2. d4 {[%clk 0:03:00]}  Nf6 {[%clk 0:02:55]} 3. Nc3 {[%clk 0:03:00]}  c6 {[%clk 0:02:53]} 4. f4 {[%clk 0:02:58]}  Qa5 {[%clk 0:02:53]} 5. Bd2 {[%clk 0:02:59]}  e5 {[%clk 0:02:52]} 6. Nf3 {[%clk 0:02:53]}  Bg4 {[%clk 0:02:50]} 7. Nd5 {[%clk 0:02:35]}  Qd8 {[%clk 0:02:49]} 8. Nxf6+ {[%clk 0:02:34]}  Qxf6 {[%clk 0:02:49]} 9. dxe5 {[%clk 0:02:33]}  dxe5 {[%clk 0:02:48]} 10. fxe5 {[%clk 0:02:30]}  Qg6 {[%clk 0:02:39]} 11. Bd3 {[%clk 0:02:27]}  Bc5 {[%clk 0:02:38]} 12. Qe2 {[%clk 0:02:25]}  Nd7 {[%clk 0:02:35]} 13. O-O-O {[%clk 0:02:24]}  O-O-O {[%clk 0:02:35]} 14. Bc3 {[%clk 0:02:17]}  Rhe8 {[%clk 0:02:32]} 15. h3 {[%clk 0:02:16]}  Bxf3 {[%clk 0:02:29]} 16. gxf3 {[%clk 0:02:16]}  Nxe5 {[%clk 0:02:26]} 17. f4 {[%clk 0:01:58]}  Nxd3+ {[%clk 0:02:23]} 18. cxd3 {[%clk 0:01:58]}  Bd4 {[%clk 0:02:16]} 19. Bxd4 {[%clk 0:01:48]}  Rxd4 {[%clk 0:02:15]} 20. Rhg1 {[%clk 0:01:49]}  Qe6 {[%clk 0:02:10]} 21. Kb1 {[%clk 0:01:46]}  g6 {[%clk 0:02:10]} 22. Qe3 {[%clk 0:01:39]}  Red8 {[%clk 0:02:10]} 23. Qg3 {[%clk 0:01:38]}  f5 {[%clk 0:02:07]} 24. Rge1 {[%clk 0:01:34]}  c5 {[%clk 0:02:02]} 25. b3 {[%clk 0:01:25]}  a5 {[%clk 0:02:00]} 26. Qf3 {[%clk 0:01:22]}  a4 {[%clk 0:01:57]} 27. Kb2 {[%clk 0:01:17]}  Qa6 {[%clk 0:01:51]} 28. Re3 {[%clk 0:01:07]}  fxe4 {[%clk 0:01:39]} 29. Rxe4 {[%clk 0:01:07]}  Rxd3 {[%clk 0:01:37]} 30. Rxd3 {[%clk 0:00:59]}  Qxd3 {[%clk 0:01:24]} 31. Qxd3 {[%clk 0:00:59]}  Rxd3 {[%clk 0:01:23]} 32. Re8+ {[%clk 0:00:59]}  Kd7 {[%clk 0:01:21]} 33. Rg8 {[%clk 0:00:58]}  Rxh3 {[%clk 0:01:15]} 34. Rg7+ {[%clk 0:00:58]}  Kc6 {[%clk 0:01:15]} 35. Rf7 {[%clk 0:00:51]}  axb3 {[%clk 0:01:13]} 36. axb3 {[%clk 0:00:50]}  b5 {[%clk 0:01:13]} 37. Rf6+ {[%clk 0:00:49]}  Kd5 {[%clk 0:01:12]} 38. Rb6 {[%clk 0:00:48]}  b4 {[%clk 0:01:10]} 39. Rb8 {[%clk 0:00:47]}  Ke4 {[%clk 0:01:05]} 40. Rc8 {[%clk 0:00:46]}  Rc3 {[%clk 0:01:04]} 41. Rf8 {[%clk 0:00:46]}  h5 {[%clk 0:01:03]} 42. Rf6 {[%clk 0:00:44]}  h4 {[%clk 0:01:02]} 43. Rxg6 {[%clk 0:00:43]}  Kxf4 {[%clk 0:01:02]} 44. Rg1 {[%clk 0:00:39]}  h3 {[%clk 0:01:02]} 45. Rh1 {[%clk 0:00:38]}  Kg3 {[%clk 0:01:02]} 46. Rg1+ {[%clk 0:00:38]}  Kf2 {[%clk 0:01:01]} 47. Rg7 {[%clk 0:00:36]}  h2 {[%clk 0:01:00]} 48. Rh7 {[%clk 0:00:35]}  Kg2 {[%clk 0:01:00]} 49. Rf7 {[%clk 0:00:34]}  h1=Q {[%clk 0:00:59]} 0-1


[Site "https://www.chess.com"]

[Event "Titled Tuesday Blitz June 21 Early 2022"]
[White "Xu, Yinglun"]
[Black "Joie, Sebastien"]
[WhiteFideId "8604940"]
[BlackFideId "650420"]
[WhiteElo "2544"]
[BlackElo "2397"]
[Result "0-1"]
[Round "04"]
[TimeControl "180+1"]
[Date "2022.06.21"]
[WhiteClock "0:01:22"]
[BlackClock "0:00:39"]

1. c4 {[%clk 0:03:00]}  c6 {[%clk 0:02:59]} 2. Nf3 {[%clk 0:03:00]}  d5 {[%clk 0:02:59]} 3. d4 {[%clk 0:03:01]}  Nf6 {[%clk 0:02:59]} 4. e3 {[%clk 0:03:01]}  Bf5 {[%clk 0:02:58]} 5. Nc3 {[%clk 0:03:01]}  e6 {[%clk 0:02:58]} 6. Nh4 {[%clk 0:03:02]}  Be7 {[%clk 0:02:58]} 7. Nxf5 {[%clk 0:03:01]}  exf5 {[%clk 0:02:58]} 8. Qb3 {[%clk 0:02:46]}  Qd7 {[%clk 0:02:58]} 9. Be2 {[%clk 0:02:42]}  O-O {[%clk 0:02:57]} 10. O-O {[%clk 0:02:42]}  dxc4 {[%clk 0:02:56]} 11. Qxc4 {[%clk 0:02:39]}  b5 {[%clk 0:02:57]} 12. Qb3 {[%clk 0:02:36]}  Na6 {[%clk 0:02:57]} 13. Rd1 {[%clk 0:02:35]}  Nc7 {[%clk 0:02:57]} 14. Bf3 {[%clk 0:02:32]}  g6 {[%clk 0:02:52]} 15. Bd2 {[%clk 0:02:32]}  Ncd5 {[%clk 0:02:49]} 16. Rac1 {[%clk 0:02:32]}  Rfc8 {[%clk 0:02:41]} 17. g3 {[%clk 0:02:23]}  Qe6 {[%clk 0:02:36]} 18. Nxd5 {[%clk 0:02:19]}  Nxd5 {[%clk 0:02:35]} 19. Rxc6 {[%clk 0:02:10]}  Rxc6 {[%clk 0:01:56]} 20. Bxd5 {[%clk 0:02:09]}  Qd6 {[%clk 0:01:50]} 21. Bxf7+ {[%clk 0:02:02]}  Kg7 {[%clk 0:01:41]} 22. Bd5 {[%clk 0:02:02]}  Rac8 {[%clk 0:01:34]} 23. Bxc6 {[%clk 0:02:02]}  Rxc6 {[%clk 0:01:34]} 24. Qxb5 {[%clk 0:01:36]}  Rb6 {[%clk 0:01:30]} 25. Qa4 {[%clk 0:01:33]}  Rxb2 {[%clk 0:01:26]} 26. Qxa7 {[%clk 0:01:22]}  g5 {[%clk 0:00:39]} 0-1


[Site "https://www.chess.com"]